[Event "Open NK Rapid 2025"]
[Site "Helmond, Netherlands"]
[Date "2025.05.03"]
[Round "7.4"]
[White "Stolwijk, Colin"]
[Black "Fridman, Daniel"]
[Result "1/2-1/2"]
[TimeControl "15+5"]
[WhiteFideId "1033743"]
[BlackFideId "11600454"]
[WhiteElo "2286"]
[BlackElo "2539"]

1. e4 {[%clk 00:15:08]} {[%emt 00:00:02]} c6 {[%clk 00:14:27]} {[%emt
00:00:44]} 2. Nf3 {[%clk 00:15:10]} {[%emt 00:00:03]} d5 {[%clk 00:14:30]}
{[%emt 00:00:02]} 3. d3 {[%clk 00:15:13]} {[%emt 00:00:02]} dxe4 {[%clk
00:14:27]} {[%emt 00:00:08]} 4. dxe4 {[%clk 00:15:17]} {[%emt 00:00:02]} Qxd1+
{[%clk 00:14:30]} 5. Kxd1 {[%clk 00:15:20]} {[%emt 00:00:02]} Nf6 {[%clk
00:14:33]} {[%emt 00:00:01]} 6. Nbd2 {[%clk 00:15:23]} {[%emt 00:00:02]} Bg4
{[%clk 00:14:04]} {[%emt 00:00:35]} 7. Be2 {[%clk 00:15:26]} {[%emt 00:00:01]}
Nbd7 {[%clk 00:13:59]} {[%emt 00:00:10]} 8. Ne1 {[%clk 00:15:27]} {[%emt
00:00:05]} Bxe2+ {[%clk 00:13:57]} {[%emt 00:00:07]} 9. Kxe2 {[%clk 00:15:30]}
{[%emt 00:00:02]} g5 {[%clk 00:13:59]} {[%emt 00:00:03]} 10. Nd3 {[%clk
00:15:06]} {[%emt 00:00:29]} O-O-O {[%clk 00:13:52]} {[%emt 00:00:12]} 11. a4
{[%clk 00:15:00]} {[%emt 00:00:11]} h5 {[%clk 00:13:39]} {[%emt 00:00:18]} 12.
a5 {[%clk 00:15:03]} {[%emt 00:00:02]} g4 {[%clk 00:13:38]} {[%emt 00:00:05]}
13. e5 {[%clk 00:13:51]} {[%emt 00:01:18]} Nd5 {[%clk 00:13:24]} {[%emt
00:00:19]} 14. Nc4 {[%clk 00:12:53]} {[%emt 00:01:03]} Bh6 {[%clk 00:13:05]}
{[%emt 00:00:23]} 15. h3 {[%clk 00:12:44]} {[%emt 00:00:15]} Rdg8 {[%clk
00:12:49]} {[%emt 00:00:21]} 16. g3 {[%clk 00:11:54]} {[%emt 00:00:55]} Bxc1
{[%clk 00:11:23]} {[%emt 00:01:31]} 17. Raxc1 {[%clk 00:11:57]} {[%emt
00:00:02]} Nf8 {[%clk 00:10:05]} {[%emt 00:01:23]} 18. Ne3 {[%clk 00:11:20]}
{[%emt 00:00:42]} Nxe3 {[%clk 00:09:25]} {[%emt 00:00:45]} 19. Kxe3 {[%clk
00:11:24]} {[%emt 00:00:02]} Ne6 {[%clk 00:09:28]} {[%emt 00:00:01]} 20. b4
{[%clk 00:10:08]} {[%emt 00:01:20]} h4 {[%clk 00:08:51]} {[%emt 00:00:43]} 21.
hxg4 {[%clk 00:09:48]} {[%emt 00:00:25]} Rxg4 {[%clk 00:08:50]} {[%emt
00:00:06]} 22. gxh4 {[%clk 00:09:46]} {[%emt 00:00:06]} Rhxh4 {[%clk 00:08:53]}
{[%emt 00:00:02]} 23. f3 {[%clk 00:08:20]} {[%emt 00:01:32]} Rc4 {[%clk
00:08:48]} {[%emt 00:00:09]} 24. Rxh4 {[%clk 00:07:38]} {[%emt 00:00:48]} Rxh4
{[%clk 00:08:51]} {[%emt 00:00:02]} 25. c3 {[%clk 00:07:41]} {[%emt 00:00:02]}
Ng7 {[%clk 00:08:29]} {[%emt 00:00:27]} 26. Rg1 {[%clk 00:06:52]} {[%emt
00:00:54]} Nf5+ {[%clk 00:08:32]} {[%emt 00:00:02]} 27. Ke2 {[%clk 00:06:55]}
{[%emt 00:00:01]} Rh8 {[%clk 00:06:42]} {[%emt 00:01:55]} 28. Rg5 {[%clk
00:06:43]} {[%emt 00:00:16]} e6 {[%clk 00:06:46]} {[%emt 00:00:02]} 29. Nc5
{[%clk 00:06:24]} {[%emt 00:00:24]} Rh2+ {[%clk 00:06:11]} {[%emt 00:00:40]} 30.
Kd3 {[%clk 00:06:28]} {[%emt 00:00:01]} Rh8 {[%clk 00:05:36]} {[%emt 00:00:40]}
31. Ne4 {[%clk 00:06:30]} {[%emt 00:00:03]} Kc7 {[%clk 00:05:37]} {[%emt
00:00:04]} 32. Rg2 {[%clk 00:05:46]} {[%emt 00:00:49]} Kd7 {[%clk 00:04:15]}
{[%emt 00:01:27]} 33. Nc5+ {[%clk 00:05:44]} {[%emt 00:00:07]} Kc7 {[%clk
00:04:17]} {[%emt 00:00:02]} 34. Ne4 {[%clk 00:05:48]} {[%emt 00:00:01]} Kd8
{[%clk 00:04:03]} {[%emt 00:00:20]} 35. Nc5 {[%clk 00:05:40]} {[%emt 00:00:13]}
b6 {[%clk 00:03:32]} {[%emt 00:00:35]} 36. axb6 {[%clk 00:05:09]} {[%emt
00:00:37]} axb6 {[%clk 00:03:35]} {[%emt 00:00:01]} 37. Ne4 {[%clk 00:05:10]}
{[%emt 00:00:05]} Ke7 {[%clk 00:02:46]} {[%emt 00:00:54]} 38. Ra2 {[%clk
00:04:34]} {[%emt 00:00:41]} Rd8+ {[%clk 00:01:48]} {[%emt 00:01:03]} 39. Ke2
{[%clk 00:04:36]} {[%emt 00:00:03]} Nh4 {[%clk 00:01:16]} {[%emt 00:00:36]} 40.
f4 {[%clk 00:03:55]} {[%emt 00:00:47]} Ng2 {[%clk 00:01:00]} {[%emt 00:00:21]}
41. Kf3 {[%clk 00:03:50]} {[%emt 00:00:10]} Nh4+ {[%clk 00:01:02]} {[%emt
00:00:02]} 42. Kg4 {[%clk 00:03:39]} {[%emt 00:00:16]} Nf5 {[%clk 00:00:42]}
{[%emt 00:00:25]} 43. Nf6 {[%clk 00:03:15]} {[%emt 00:00:29]} Rd3 {[%clk
00:00:37]} {[%emt 00:00:10]} 44. Ra7+ {[%clk 00:03:18]} {[%emt 00:00:02]} Kd8
{[%clk 00:00:41]} {[%emt 00:00:02]} 45. Ne4 {[%clk 00:02:34]} {[%emt 00:00:49]}
Re3 {[%clk 00:00:37]} {[%emt 00:00:09]} 46. Ng5 {[%clk 00:02:37]} {[%emt
00:00:02]} Kc8 {[%clk 00:00:24]} {[%emt 00:00:18]} 47. Nxf7 {[%clk 00:02:12]}
{[%emt 00:00:29]} Kb8 {[%clk 00:00:28]} {[%emt 00:00:01]} 48. Rd7 {[%clk
00:02:07]} {[%emt 00:00:11]} Rxc3 {[%clk 00:00:11]} {[%emt 00:00:22]} 49. Ng5
{[%clk 00:02:02]} {[%emt 00:00:09]} Kc8 {[%clk 00:00:09]} {[%emt 00:00:08]} 50.
Rh7 {[%clk 00:01:57]} {[%emt 00:00:10]} Nd4 {[%clk 00:00:12]} {[%emt 00:00:01]}
51. Re7 {[%clk 00:01:22]} {[%emt 00:00:41]} Kd8 {[%clk 00:00:10]} {[%emt
00:00:08]} 52. Rb7 {[%clk 00:01:18]} {[%emt 00:00:08]} Kc8 {[%clk 00:00:09]}
{[%emt 00:00:06]} 53. Rxb6 {[%clk 00:01:16]} {[%emt 00:00:07]} Ra3 {[%clk
00:00:13]} {[%emt 00:00:01]} 54. Nxe6 {[%clk 00:00:55]} {[%emt 00:00:25]} Nxe6
{[%clk 00:00:17]} {[%emt 00:00:01]} 55. Rxc6+ {[%clk 00:00:59]} {[%emt
00:00:01]} Nc7 {[%clk 00:00:22]} 56. Kf5 {[%clk 00:00:47]} {[%emt 00:00:17]}
Rb3 {[%clk 00:00:25]} {[%emt 00:00:02]} 57. e6 {[%clk 00:00:40]} {[%emt
00:00:12]} Kb7 {[%clk 00:00:29]} {[%emt 00:00:01]} 58. Rd6 {[%clk 00:00:35]}
{[%emt 00:00:10]} Rxb4 {[%clk 00:00:33]} {[%emt 00:00:02]} 59. e7 {[%clk
00:00:33]} {[%emt 00:00:06]} Rb5+ {[%clk 00:00:34]} {[%emt 00:00:03]} 60. Kg6
{[%clk 00:00:35]} {[%emt 00:00:03]} Rb6 {[%clk 00:00:29]} {[%emt 00:00:12]} 61.
Rxb6+ {[%clk 00:00:24]} {[%emt 00:00:16]} Kxb6 {[%clk 00:00:33]} 62. f5 {[%clk
00:00:28]} {[%emt 00:00:01]} Kc6 {[%clk 00:00:37]} 63. f6 {[%clk 00:00:18]}
{[%emt 00:00:15]} Kd7 {[%clk 00:00:41]} {[%emt 00:00:01]} 64. Kg7 {[%clk
00:00:17]} {[%emt 00:00:06]} Ne8 {[%clk 00:00:45]} {[%emt 00:00:02]} 65. Kf7
{[%clk 00:00:15]} {[%emt 00:00:06]} Nxf6 {[%clk 00:00:48]} {[%emt 00:00:02]} 66.
Kxf6 {[%clk 00:00:19]} Ke8 {[%clk 00:00:53]} 67. Ke6 {[%clk 00:00:23]} 1/2-1/2

[Event "Open NK Rapid 2025"]
[Site "Helmond, Netherlands"]
[Date "2025.05.03"]
[Round "7.5"]
[White "Hilwerda, Jonas"]
[Black "Peng, Li Min"]
[Result "0-1"]
[TimeControl "15+5"]
[WhiteFideId "1046713"]
[BlackFideId "14112620"]
[WhiteElo "2233"]
[BlackElo "2510"]

1. e4 {[%clk 00:15:08]} g6 {[%clk 00:14:51]} {[%emt 00:00:20]} 2. d4 {[%clk
00:15:08]} {[%emt 00:00:05]} Bg7 {[%clk 00:14:53]} {[%emt 00:00:03]} 3. Nc3
{[%clk 00:15:10]} {[%emt 00:00:03]} d6 {[%clk 00:14:55]} {[%emt 00:00:02]} 4.
f4 {[%clk 00:14:58]} {[%emt 00:00:18]} a6 {[%clk 00:14:58]} {[%emt 00:00:02]} 5.
Nf3 {[%clk 00:14:51]} {[%emt 00:00:11]} b5 {[%clk 00:15:01]} {[%emt 00:00:02]}
6. Bd3 {[%clk 00:14:51]} {[%emt 00:00:05]} Nd7 {[%clk 00:15:04]} {[%emt
00:00:03]} 7. a4 {[%clk 00:14:50]} {[%emt 00:00:06]} b4 {[%clk 00:15:06]}
{[%emt 00:00:04]} 8. Ne2 {[%clk 00:14:53]} {[%emt 00:00:02]} c5 {[%clk
00:14:47]} {[%emt 00:00:23]} 9. c3 {[%clk 00:14:56]} {[%emt 00:00:02]} bxc3
{[%clk 00:14:50]} {[%emt 00:00:02]} 10. bxc3 {[%clk 00:15:00]} {[%emt
00:00:02]} e6 {[%clk 00:14:25]} {[%emt 00:00:29]} 11. O-O {[%clk 00:14:59]}
{[%emt 00:00:05]} Ne7 {[%clk 00:14:17]} {[%emt 00:00:13]} 12. Kh1 {[%clk
00:14:13]} {[%emt 00:00:52]} O-O {[%clk 00:14:09]} {[%emt 00:00:13]} 13. Be3
{[%clk 00:14:14]} {[%emt 00:00:04]} Bb7 {[%clk 00:13:41]} {[%emt 00:00:33]} 14.
Rb1 {[%clk 00:14:17]} {[%emt 00:00:03]} Rb8 {[%clk 00:13:15]} {[%emt 00:00:30]}
15. f5 {[%clk 00:14:12]} {[%emt 00:00:11]} exf5 {[%clk 00:13:12]} {[%emt
00:00:07]} 16. exf5 {[%clk 00:14:15]} {[%emt 00:00:03]} c4 {[%clk 00:12:43]}
{[%emt 00:00:34]} 17. Bc2 {[%clk 00:14:04]} {[%emt 00:00:15]} Nd5 {[%clk
00:12:40]} {[%emt 00:00:07]} 18. Bg5 {[%clk 00:14:00]} {[%emt 00:00:10]} Qa5
{[%clk 00:12:24]} {[%emt 00:00:21]} 19. Qd2 {[%clk 00:10:23]} {[%emt 00:03:42]}
Bc6 {[%clk 00:12:27]} {[%emt 00:00:02]} 20. Ng3 {[%clk 00:10:27]} {[%emt
00:00:01]} Qxc3 {[%clk 00:11:43]} {[%emt 00:00:49]} 21. Ne4 {[%clk 00:10:31]}
{[%emt 00:00:01]} Qxd2 {[%clk 00:11:42]} {[%emt 00:00:06]} 22. Nfxd2 {[%clk
00:10:33]} {[%emt 00:00:03]} f6 {[%clk 00:06:53]} {[%emt 00:04:54]} 23. Bf4
{[%clk 00:09:06]} {[%emt 00:01:32]} Nxf4 {[%clk 00:06:56]} {[%emt 00:00:02]} 24.
Rxf4 {[%clk 00:09:09]} {[%emt 00:00:02]} d5 {[%clk 00:06:55]} {[%emt 00:00:06]}
25. Nc3 {[%clk 00:08:57]} {[%emt 00:00:17]} Bh6 {[%clk 00:06:54]} {[%emt
00:00:06]} 26. Rf2 {[%clk 00:08:21]} {[%emt 00:00:41]} Be3 {[%clk 00:06:57]}
{[%emt 00:00:02]} 27. Re2 {[%clk 00:08:24]} {[%emt 00:00:01]} Bxd4 {[%clk
00:07:00]} {[%emt 00:00:03]} 28. Na2 {[%clk 00:08:27]} {[%emt 00:00:02]} Ne5
{[%clk 00:06:38]} {[%emt 00:00:27]} 0-1

[Event "Open NK Rapid 2025"]
[Site "Helmond, Netherlands"]
[Date "2025.05.03"]
[Round "7.6"]
[White "Van Batenburg, Mees"]
[Black "Dgebuadze, Alexandre"]
[Result "0-1"]
[TimeControl "15+5"]
[WhiteFideId "1078259"]
[BlackFideId "203882"]
[WhiteElo "2217"]
[BlackElo "2454"]

1. d4 {[%clk 00:14:40]} {[%emt 00:00:29]} Nf6 {[%clk 00:15:06]} {[%emt
00:00:04]} 2. Nf3 {[%clk 00:14:44]} {[%emt 00:00:01]} e6 {[%clk 00:15:09]}
{[%emt 00:00:02]} 3. Bf4 {[%clk 00:14:48]} {[%emt 00:00:01]} Nc6 {[%clk
00:14:52]} {[%emt 00:00:23]} 4. e3 {[%clk 00:14:42]} {[%emt 00:00:11]} Nh5
{[%clk 00:14:34]} {[%emt 00:00:23]} 5. Bg5 {[%clk 00:14:41]} {[%emt 00:00:06]}
Be7 {[%clk 00:14:37]} {[%emt 00:00:01]} 6. Bxe7 {[%clk 00:14:26]} {[%emt
00:00:20]} Qxe7 {[%clk 00:14:40]} {[%emt 00:00:02]} 7. c4 {[%clk 00:14:21]}
{[%emt 00:00:10]} O-O {[%clk 00:14:33]} {[%emt 00:00:12]} 8. Nc3 {[%clk
00:14:24]} {[%emt 00:00:02]} f5 {[%clk 00:14:28]} {[%emt 00:00:11]} 9. d5
{[%clk 00:13:34]} {[%emt 00:00:55]} Nd8 {[%clk 00:14:25]} {[%emt 00:00:08]} 10.
Nd4 {[%clk 00:13:24]} {[%emt 00:00:15]} Nf6 {[%clk 00:14:19]} {[%emt 00:00:11]}
11. Be2 {[%clk 00:13:26]} {[%emt 00:00:03]} a6 {[%clk 00:13:18]} {[%emt
00:01:06]} 12. O-O {[%clk 00:12:49]} {[%emt 00:00:41]} c5 {[%clk 00:13:02]}
{[%emt 00:00:22]} 13. Nb3 {[%clk 00:12:25]} {[%emt 00:00:29]} d6 {[%clk
00:12:47]} {[%emt 00:00:20]} 14. dxe6 {[%clk 00:11:55]} {[%emt 00:00:35]} Bxe6
{[%clk 00:12:46]} {[%emt 00:00:05]} 15. Nd2 {[%clk 00:10:04]} {[%emt 00:01:56]}
Nc6 {[%clk 00:12:27]} {[%emt 00:00:25]} 16. Bf3 {[%clk 00:10:08]} {[%emt
00:00:02]} Ne5 {[%clk 00:12:19]} {[%emt 00:00:12]} 17. Bd5 {[%clk 00:08:54]}
{[%emt 00:01:19]} Nxd5 {[%clk 00:12:12]} {[%emt 00:00:12]} 18. Nxd5 {[%clk
00:08:56]} {[%emt 00:00:03]} Qf7 {[%clk 00:12:10]} {[%emt 00:00:07]} 19. f4
{[%clk 00:08:25]} {[%emt 00:00:36]} Ng4 {[%clk 00:11:49]} {[%emt 00:00:25]} 20.
Nf3 {[%clk 00:06:38]} {[%emt 00:01:52]} Bxd5 {[%clk 00:11:02]} {[%emt
00:00:53]} 21. Ng5 {[%clk 00:06:42]} {[%emt 00:00:01]} Qh5 {[%clk 00:11:05]}
{[%emt 00:00:02]} 22. Qxd5+ {[%clk 00:06:38]} {[%emt 00:00:09]} Kh8 {[%clk
00:11:09]} 23. Rfe1 {[%clk 00:05:53]} {[%emt 00:00:50]} Qxh2+ {[%clk 00:10:18]}
{[%emt 00:00:55]} 24. Kf1 {[%clk 00:05:56]} {[%emt 00:00:02]} Rae8 {[%clk
00:07:09]} {[%emt 00:03:15]} 25. Nf7+ {[%clk 00:04:29]} {[%emt 00:01:32]} Rxf7
{[%clk 00:07:11]} {[%emt 00:00:02]} 26. Qxf7 {[%clk 00:04:33]} {[%emt
00:00:01]} Qh1+ {[%clk 00:06:03]} {[%emt 00:01:12]} 27. Ke2 {[%clk 00:04:36]}
{[%emt 00:00:03]} Rxe3+ {[%clk 00:06:03]} {[%emt 00:00:05]} 28. Kd2 {[%clk
00:04:36]} {[%emt 00:00:05]} Qxg2+ {[%clk 00:06:06]} {[%emt 00:00:02]} 29. Kd1
{[%clk 00:04:40]} {[%emt 00:00:02]} Qf3+ {[%clk 00:06:08]} {[%emt 00:00:03]} 30.
Kc1 {[%clk 00:04:41]} {[%emt 00:00:04]} Rxe1+ {[%clk 00:06:08]} {[%emt
00:00:05]} 31. Kc2 {[%clk 00:04:44]} {[%emt 00:00:02]} Re2+ {[%clk 00:06:10]}
{[%emt 00:00:02]} 0-1

[Event "Open NK Rapid 2025"]
[Site "Helmond, Netherlands"]
[Date "2025.05.03"]
[Round "7.7"]
[White "Van Roon, Sjoerd"]
[Black "Schneider, Ilja"]
[Result "1-0"]
[TimeControl "15+5"]
[WhiteFideId "1051075"]
[BlackFideId "4663306"]
[WhiteElo "2179"]
[BlackElo "2438"]

1. e4 {[%clk 00:15:08]} {[%emt 00:00:02]} e5 {[%clk 00:15:10]} {[%emt
00:00:01]} 2. Nf3 {[%clk 00:15:12]} {[%emt 00:00:01]} Nc6 {[%clk 00:15:14]} 3.
Bc4 {[%clk 00:15:16]} Bc5 {[%clk 00:15:18]} 4. c3 {[%clk 00:15:20]} {[%emt
00:00:01]} d6 {[%clk 00:15:22]} 5. O-O {[%emt 00:00:16]} Bb6 {[%clk 00:15:22]}
6. d4 {[%clk 00:14:42]} {[%emt 00:00:38]} exd4 {[%clk 00:15:26]} {[%emt
00:00:01]} 7. cxd4 {[%clk 00:14:42]} {[%emt 00:00:05]} Nf6 {[%clk 00:15:30]}
{[%emt 00:00:01]} 8. Nc3 {[%clk 00:14:30]} {[%emt 00:00:16]} O-O {[%clk
00:15:33]} {[%emt 00:00:02]} 9. d5 {[%clk 00:13:35]} {[%emt 00:01:00]} Ne7
{[%clk 00:15:26]} {[%emt 00:00:12]} 10. Kh1 {[%clk 00:12:17]} {[%emt 00:01:22]}
Ng6 {[%clk 00:15:14]} {[%emt 00:00:18]} 11. Qc2 {[%clk 00:11:42]} {[%emt
00:00:41]} Re8 {[%clk 00:14:59]} {[%emt 00:00:20]} 12. Bb5 {[%clk 00:11:08]}
{[%emt 00:00:38]} Bd7 {[%clk 00:14:59]} {[%emt 00:00:04]} 13. Bxd7 {[%clk
00:10:47]} {[%emt 00:00:26]} Qxd7 {[%clk 00:14:33]} {[%emt 00:00:32]} 14. h3
{[%clk 00:10:27]} {[%emt 00:00:25]} Ba5 {[%clk 00:13:07]} {[%emt 00:01:31]} 15.
Re1 {[%clk 00:09:25]} {[%emt 00:01:06]} c6 {[%clk 00:13:01]} {[%emt 00:00:13]}
16. Bg5 {[%clk 00:08:42]} {[%emt 00:00:47]} Bxc3 {[%clk 00:12:14]} {[%emt
00:00:51]} 17. bxc3 {[%clk 00:08:32]} {[%emt 00:00:16]} cxd5 {[%clk 00:12:15]}
{[%emt 00:00:05]} 18. Bxf6 {[%clk 00:08:08]} {[%emt 00:00:28]} dxe4 {[%clk
00:12:18]} {[%emt 00:00:01]} 19. Rxe4 {[%clk 00:07:33]} {[%emt 00:00:41]} gxf6
{[%clk 00:12:15]} {[%emt 00:00:08]} 20. Rae1 {[%clk 00:07:36]} {[%emt
00:00:02]} d5 {[%clk 00:11:59]} {[%emt 00:00:21]} 21. Qd2 {[%clk 00:06:43]}
{[%emt 00:00:57]} Rxe4 {[%clk 00:09:17]} {[%emt 00:02:48]} 22. Rxe4 {[%clk
00:06:47]} {[%emt 00:00:02]} Qc6 {[%clk 00:09:01]} {[%emt 00:00:20]} 23. Rd4
{[%clk 00:05:56]} {[%emt 00:00:56]} Rc8 {[%clk 00:08:58]} {[%emt 00:00:08]} 24.
Rd3 {[%clk 00:04:33]} {[%emt 00:01:28]} b5 {[%clk 00:07:41]} {[%emt 00:01:22]}
25. Nd4 {[%clk 00:04:34]} {[%emt 00:00:04]} Qc4 {[%clk 00:06:40]} {[%emt
00:01:07]} 26. Nf5 {[%clk 00:04:09]} {[%emt 00:00:29]} Nf4 {[%clk 00:05:17]}
{[%emt 00:01:28]} 27. Rg3+ {[%clk 00:03:12]} {[%emt 00:01:01]} Kf8 {[%clk
00:05:16]} {[%emt 00:00:07]} 28. Kh2 {[%clk 00:02:22]} {[%emt 00:00:55]} Qa4
{[%clk 00:03:54]} {[%emt 00:01:27]} 29. Rg4 {[%clk 00:01:51]} {[%emt 00:00:37]}
Rc4 {[%clk 00:03:48]} {[%emt 00:00:10]} 30. Nd6 {[%clk 00:01:49]} {[%emt
00:00:07]} h5 {[%clk 00:03:25]} {[%emt 00:00:28]} 31. Rh4 {[%clk 00:01:22]}
{[%emt 00:00:32]} Ng6 {[%clk 00:03:19]} {[%emt 00:00:12]} 32. Qxd5 {[%clk
00:01:20]} {[%emt 00:00:06]} Ke7 {[%clk 00:02:41]} {[%emt 00:00:43]} 33. Nf5+
{[%clk 00:00:28]} {[%emt 00:00:57]} Ke8 {[%clk 00:02:46]} 34. Rxh5 {[%clk
00:00:25]} {[%emt 00:00:08]} Rc7 {[%clk 00:02:40]} {[%emt 00:00:12]} 35. Qa8+
{[%clk 00:00:18]} {[%emt 00:00:11]} Kd7 {[%clk 00:02:43]} {[%emt 00:00:02]} 36.
Nd4 {[%clk 00:00:17]} {[%emt 00:00:06]} Ne7 {[%clk 00:01:53]} {[%emt 00:00:56]}
37. Rxb5 {[%clk 00:00:13]} {[%emt 00:00:09]} Qxa2 {[%clk 00:01:44]} {[%emt
00:00:13]} 38. Rb7 {[%clk 00:00:08]} {[%emt 00:00:10]} Qa5 {[%clk 00:01:27]}
{[%emt 00:00:22]} 39. g3 {[%clk 00:00:08]} {[%emt 00:00:05]} Qa2 {[%clk
00:00:16]} {[%emt 00:01:16]} 40. Rxc7+ {[%clk 00:00:09]} {[%emt 00:00:04]} Kxc7
{[%emt 00:00:09]} 41. Qf3 {[%clk 00:00:10]} {time} 1-0

[Event "Open NK Rapid 2025"]
[Site "Helmond, Netherlands"]
[Date "2025.05.03"]
[Round "7.8"]
[White "Bekkink, Sereyo"]
[Black "Cernov, Vadim"]
[Result "0-1"]
[TimeControl "15+5"]
[WhiteFideId "1037161"]
[BlackFideId "1210629"]
[WhiteElo "2064"]
[BlackElo "2320"]

1. e4 {[%clk 00:15:09]} g6 {[%clk 00:15:09]} {[%emt 00:00:02]} 2. d4 {[%clk
00:15:12]} {[%emt 00:00:02]} Bg7 {[%clk 00:15:13]} 3. Nc3 {[%clk 00:15:16]}
{[%emt 00:00:02]} c6 {[%clk 00:15:17]} {[%emt 00:00:01]} 4. Be3 {[%clk
00:15:19]} {[%emt 00:00:02]} Qb6 {[%clk 00:15:21]} {[%emt 00:00:01]} 5. Rb1
{[%clk 00:15:04]} {[%emt 00:00:20]} d6 {[%clk 00:15:24]} {[%emt 00:00:02]} 6.
Bc4 {[%clk 00:14:57]} {[%emt 00:00:12]} Nf6 {[%clk 00:14:12]} {[%emt 00:01:16]}
7. f3 {[%clk 00:14:22]} {[%emt 00:00:40]} O-O {[%clk 00:14:04]} {[%emt
00:00:13]} 8. Qd2 {[%clk 00:14:22]} {[%emt 00:00:06]} Qc7 {[%clk 00:14:01]}
{[%emt 00:00:08]} 9. Bh6 {[%clk 00:13:37]} {[%emt 00:00:50]} b5 {[%clk
00:13:52]} {[%emt 00:00:14]} 10. Bxg7 {[%clk 00:13:17]} {[%emt 00:00:24]} Kxg7
{[%clk 00:13:55]} {[%emt 00:00:02]} 11. Bd3 {[%clk 00:11:16]} {[%emt 00:02:07]}
e5 {[%clk 00:13:57]} {[%emt 00:00:03]} 12. Nge2 {[%clk 00:08:37]} {[%emt
00:02:44]} Nbd7 {[%clk 00:13:47]} {[%emt 00:00:15]} 13. b4 {[%clk 00:07:42]}
{[%emt 00:01:00]} a5 {[%clk 00:13:42]} {[%emt 00:00:09]} 14. a3 {[%clk
00:07:43]} {[%emt 00:00:05]} axb4 {[%clk 00:13:41]} {[%emt 00:00:06]} 15. axb4
{[%clk 00:07:47]} Qb6 {[%clk 00:12:48]} {[%emt 00:00:58]} 16. d5 {[%clk
00:06:52]} {[%emt 00:01:00]} cxd5 {[%clk 00:12:37]} {[%emt 00:00:16]} 17. exd5
{[%clk 00:06:56]} {[%emt 00:00:01]} Ba6 {[%clk 00:11:18]} {[%emt 00:01:24]} 18.
h4 {[%clk 00:06:42]} {[%emt 00:00:19]} h5 {[%clk 00:10:45]} {[%emt 00:00:38]}
19. Ng3 {[%clk 00:05:19]} {[%emt 00:01:28]} Nh7 {[%clk 00:09:35]} {[%emt
00:01:14]} 20. Nce4 {[%clk 00:03:29]} {[%emt 00:01:56]} Bb7 {[%clk 00:07:04]}
{[%emt 00:02:36]} 21. Ng5 {[%clk 00:03:10]} {[%emt 00:00:24]} Ndf6 {[%clk
00:06:30]} {[%emt 00:00:39]} 22. Be4 {[%clk 00:02:04]} {[%emt 00:01:11]} Rfc8
{[%clk 00:05:12]} {[%emt 00:01:23]} 23. Bxg6 {[%clk 00:01:14]} {[%emt
00:00:54]} fxg6 {[%clk 00:04:59]} {[%emt 00:00:18]} 24. Ne6+ {[%clk 00:01:18]}
{[%emt 00:00:01]} Kh8 {[%clk 00:03:55]} {[%emt 00:01:09]} 25. Qh6 {[%clk
00:01:21]} {[%emt 00:00:02]} Rg8 {[%clk 00:03:57]} {[%emt 00:00:03]} 26. Ne4
{[%clk 00:00:43]} {[%emt 00:00:43]} Nxe4 {[%clk 00:03:08]} {[%emt 00:00:55]} 27.
fxe4 {[%clk 00:00:47]} {[%emt 00:00:01]} Bc8 {[%clk 00:01:54]} {[%emt
00:01:18]} 28. Ng5 {[%clk 00:00:51]} {[%emt 00:00:02]} Qe3+ {[%clk 00:01:17]}
{[%emt 00:00:41]} 29. Kd1 {[%clk 00:00:41]} {[%emt 00:00:16]} Bg4+ {[%clk
00:01:17]} {[%emt 00:00:04]} 0-1